[Event "Teplice Open 2019"]
[Site "Teplice"]
[Date "2019.06.17"]
[Round "3.27"]
[White "Hollan, Petr"]
[Black "Haldorsen, Benjamin"]
[Result "1/2-1/2"]
[ECO "C11"]
[WhiteElo "2261"]
[BlackElo "2454"]
[Annotator "ChessBase"]
[PlyCount "74"]
[EventDate "2019.06.15"]
[EventType "swiss"]
[EventCountry "CZE"]
[SourceTitle "playchess.com"]
[Source "ChessBase"]
[SourceQuality "1"]
[TimeControl "40/5400+30:1800+30"]

1. e4 {[%emt 0:00:00]} e6 {[%emt 0:00:00]} 2. d4 {[%emt 0:00:00]} d5 {[%emt 0:00:12]} 3. Nc3 {[%emt 0:07:27]} Nf6 {[%emt 0:00:40]} 4. e5 {[%emt 0:00:30]} Nfd7 {[%emt 0:00:58]} 5. f4 {[%emt 0:00:17]} c5 {[%emt 0:00:15]} 6. Nf3 {[%emt 0:00:07]} Nc6 {[%emt 0:00:05]} 7. Be3 {[%emt 0:00:05]} Be7 {[%emt 0:00:23]} 8. Qd2 {[%emt 0:00:07]} O-O {[%emt 0:00:43]} 9. dxc5 {[%emt 0:00:18]} Qa5 {[%emt 0:01:22]} 10. O-O-O {[%emt 0:26:55]} b6 {[%emt 0:04:18]} 11. Bb5 {[%emt 0:07:27]} Nb4 {[%emt 0:00:23]} 12. a3 {[%emt 0:12:57]} bxc5 {[%emt 0:00:47]} 13. Kb1 {[%emt 0:10:59]} Rb8 {[%emt 0:09:31]} 14. axb4 {[%emt 0:01:39]} cxb4 {[%emt 0:00:19]} 15. Nxd5 {[%emt 0:00:19]} exd5 {[%emt 0:00:16]} 16. Bxd7 {[%emt 0:00:06]} Bxd7 {[%emt 0:00:06]} 17. Qxd5 {[%emt 0:00:09]} Qxd5 {[%emt 0:00:20]} 18. Rxd5 {[%emt 0:00:08]} Bc6 {[%emt 0:00:03]} 19. Ra5 {[%emt 0:13:49]} Rfc8 {[%emt 0:00:30]} 20. Nd2 {[%emt 0:02:07]} Bxg2 {[%emt 0:01:27]} 21. Rg1 {[%emt 0:00:31]} Bh3 {[%emt 0:00:01]} 22. Rxa7 {[%emt 0:03:05]} Bf8 {[%emt 0:01:47]} 23. Nb3 {[%emt 0:06:42]} Bf5 {[%emt 0:00:58]} 24. Nd4 {[%emt 0:03:28]} Be4 {[%emt 0:00:11]} 25. e6 {[%emt 0:01:47]} fxe6 {[%emt 0:07:04]} 26. b3 {[%emt 0:01:06]} g6 {[%emt 0:00:54]} 27. Re1 {[%emt 0:00:28]} Bc5 {[%emt 0:30:39]} 28. Ra2 {[%emt 0:00:06]} Rb6 {[%emt 0:12:19]} 29. Bg1 {[%emt 0:00:07]} Bd5 {[%emt 0:00:42]} 30. Ra5 {[%emt 0:00:25]} Bxd4 {[%emt 0:03:30]} 31. Bxd4 {[%emt 0:00:07]} Rbc6 {[%emt 0:00:13]} 32. Re2 {[%emt 0:00:32]} Bf3 {[%emt 0:00:03]} 33. Rd2 {[%emt 0:01:08]} Be4 {[%emt 0:01:09]} 34. Ra2 {[%emt 0:00:06]} Bf5 {[%emt 0:08:49]} 35. Be5 {[%emt 0:00:18]} Rc5 {[%emt 0:00:31]} 36. Kc1 {[%emt 0:00:42]} h6 {[%emt 0:04:04]} 37. h4 {[%emt 0:00:10]} R5c6 {[%emt 0:01:24]} 1/2-1/2

[Event "Teplice Open 2019"]
[Site "Teplice"]
[Date "2019.06.17"]
[Round "3.28"]
[White "Halvax, Georg"]
[Black "Brozyna, Mateusz"]
[Result "1-0"]
[ECO "D15"]
[WhiteElo "2408"]
[BlackElo "2252"]
[Annotator "NA"]
[PlyCount "71"]
[EventDate "2019.06.15"]
[EventType "swiss"]
[EventCountry "CZE"]
[SourceTitle "playchess.com"]
[Source "ChessBase"]
[SourceQuality "1"]
[TimeControl "40/5400+30:1800+30"]

1. d4 {[%emt 0:00:00]} d5 {[%emt 0:00:00]} 2. Nf3 {[%emt 0:00:00]} c6 {[%emt 0:00:00]} 3. e3 {[%emt 0:00:47]} Nf6 {[%emt 0:00:05]} 4. c4 {[%emt 0:00:30]} Bf5 {[%emt 0:05:56]} 5. Nc3 {[%emt 0:00:25]} a6 {[%emt 0:00:25]} 6. Bd3 {[%emt 0:06:41]} Bxd3 {[%emt 0:03:09]} 7. Qxd3 {[%emt 0:00:06]} e6 {[%emt 0:00:17]} 8. O-O {[%emt 0:00:44]} Nbd7 {[%emt 0:10:45]} 9. b3 {[%emt 0:03:43]} Be7 {[%emt 0:07:30]} 10. Bb2 {[%emt 0:02:15]} O-O {[%emt 0:00:43]} 11. Rad1 {[%emt 0:03:49]} b5 {[%emt 0:07:31]} 12. e4 {[%emt 0:02:10]} b4 {[%emt 0:01:31]} 13. e5 {[%emt 0:00:53]} bxc3 {[%emt 0:00:49]} 14. exf6 {[%emt 0:00:24]} cxb2 {[%emt 0:11:15]} 15. fxe7 {[%emt 0:00:41]} Qxe7 {[%emt 0:00:07]} 16. cxd5 {[%emt 0:04:23]} cxd5 {[%emt 0:01:11]} 17. Qb1 {[%emt 0:02:57]} Qa3 {[%emt 0:04:07]} 18. Rd2 {[%emt 0:02:05]} Rfc8 {[%emt 0:00:57]} 19. Rxb2 {[%emt 0:00:34]} Rc7 {[%emt 0:04:30]} 20. Rc1 {[%emt 0:01:53]} Rac8 {[%emt 0:00:16]} 21. Rxc7 {[%emt 0:00:22]} Rxc7 {[%emt 0:00:07]} 22. Rc2 {[%emt 0:00:10]} Qd6 {[%emt 0:02:55]} 23. Qc1 {[%emt 0:01:59]} Rxc2 {[%emt 0:00:46]} 24. Qxc2 {[%emt 0:00:03]} g6 {[%emt 0:04:45]} 25. h4 {[%emt 0:03:34]} h5 {[%emt 0:03:23]} 26. Qc8+ {[%emt 0:01:59]} Kg7 {[%emt 0:01:22]} 27. g3 {[%emt 0:02:12]} f6 {[%emt 0:09:03]} 28. Qe8 {[%emt 0:08:57]} Nf8 {[%emt 0:04:58]} 29. a4 {[%emt 0:03:55]} a5 {[%emt 0:08:29]} 30. Qb5 {[%emt 0:02:42]} Qa3 {[%emt 0:05:22]} 31. Kg2 {[%emt 0:01:20]} Qb2 {[%emt 0:02:04]} 32. Qxa5 {[%emt 0:00:54]} Qxb3 {[%emt 0:00:02]} 33. Qa7+ {[%emt 0:00:16]} Kg8 {[%emt 0:00:46]} 34. a5 {[%emt 0:00:12]} Qd3 {[%emt 0:01:16]} 35. a6 {[%emt 0:01:44]} g5 {[%emt 0:00:36]} 36. hxg5 {[%emt 0:00:25]} 1-0

[Event "Teplice Open 2019"]
[Site "Teplice"]
[Date "2019.06.17"]
[Round "3.30"]
[White "Kaasen, Tor Fredrik"]
[Black "Kett, Tim"]
[Result "0-1"]
[ECO "C76"]
[WhiteElo "2395"]
[BlackElo "2197"]
[Annotator "NA"]
[PlyCount "97"]
[EventDate "2019.06.15"]
[EventType "swiss"]
[EventCountry "CZE"]
[SourceTitle "playchess.com"]
[Source "ChessBase"]
[SourceQuality "1"]
[TimeControl "40/5400+30:1800+30"]

1. e4 {[%emt 0:52:09]} e5 {[%emt 0:00:08]} 2. Nf3 {[%emt 0:00:24]} Nc6 {[%emt 0:00:10]} 3. Bb5 {[%emt 0:00:11]} a6 {[%emt 0:00:10]} 4. Ba4 {[%emt 0:00:09]} d6 {[%emt 0:00:42]} 5. O-O {[%emt 0:00:49]} Bd7 {[%emt 0:00:28]} 6. c3 {[%emt 0:00:33]} g6 {[%emt 0:00:26]} 7. d4 {[%emt 0:00:34]} Bg7 {[%emt 0:00:47]} 8. Bg5 {[%emt 0:00:45]} f6 {[%emt 0:11:11]} 9. Be3 {[%emt 0:00:38]} Nh6 {[%emt 0:00:23]} 10. dxe5 {[%emt 0:03:15]} Nxe5 {[%emt 0:17:08]} 11. Bb3 {[%emt 0:06:57]} Nhg4 {[%emt 0:08:15]} 12. Bc1 {[%emt 0:06:57]} Qe7 {[%emt 0:05:11]} 13. Nd4 {[%emt 0:07:28]} c5 {[%emt 0:03:30]} 14. Ne2 {[%emt 0:00:21]} c4 {[%emt 0:11:30]} 15. Bc2 {[%emt 0:00:16]} O-O {[%emt 0:00:38]} 16. Nf4 {[%emt 0:06:07]} f5 {[%emt 0:03:35]} 17. h3 {[%emt 0:02:26]} Nh6 {[%emt 0:00:17]} 18. Nd5 {[%emt 0:03:15]} Qf7 {[%emt 0:03:55]} 19. Nb6 {[%emt 0:02:41]} f4 {[%emt 0:05:30]} 20. f3 {[%emt 0:02:03]} Rad8 {[%emt 0:02:00]} 21. Nxd7 {[%emt 0:09:42]} Qxd7 {[%emt 0:00:13]} 22. a4 {[%emt 0:01:08]} g5 {[%emt 0:01:43]} 23. Na3 {[%emt 0:00:45]} Kh8 {[%emt 0:02:09]} 24. Qe2 {[%emt 0:02:12]} b5 {[%emt 0:02:42]} 25. axb5 {[%emt 0:00:57]} axb5 {[%emt 0:00:45]} 26. Rd1 {[%emt 0:03:19]} g4 {[%emt 0:02:58]} 27. hxg4 {[%emt 0:14:08]} Nhxg4 {[%emt 0:00:26]} 28. Rd4 {[%emt 0:01:13]} Ra8 {[%emt 0:08:44]} 29. Rb1 {[%emt 0:03:13]} Rab8 {[%emt 0:00:56]} 30. Qd1 {[%emt 0:04:01]} Qf7 {[%emt 0:01:49]} 31. fxg4 {[%emt 0:07:19]} f3 {[%emt 0:00:10]} 32. Be3 {[%emt 0:02:16]} Nxg4 {[%emt 0:02:00]} 33. Qxf3 {[%emt 0:00:59]} Qxf3 {[%emt 0:00:59]} 34. gxf3 {[%emt 0:00:04]} Nxe3 {[%emt 0:00:06]} 35. Kf2 {[%emt 0:04:04]} Bxd4 {[%emt 0:00:56]} 36. cxd4 {[%emt 0:00:03]} b4 {[%emt 0:01:33]} 37. Kxe3 {[%emt 0:01:53]} bxa3 {[%emt 0:00:04]} 38. bxa3 {[%emt 0:00:14]} Rxb1 {[%emt 0:00:13]} 39. Bxb1 {[%emt 0:00:04]} Ra8 {[%emt 0:00:05]} 40. e5 {[%emt 0:00:33]} Rxa3+ {[%emt 0:02:32]} 41. Ke4 {[%emt 0:00:11]} dxe5 {[%emt 0:00:41]} 42. dxe5 {[%emt 0:00:21]} h5 {[%emt 0:01:35]} 43. f4 {[%emt 0:02:02]} Ra1 {[%emt 0:01:23]} 44. Bc2 {[%emt 0:00:12]} h4 {[%emt 0:00:33]} 45. Kd4 {[%emt 0:01:19]} h3 {[%emt 0:03:02]} 46. Be4 {[%emt 0:00:14]} h2 {[%emt 0:00:34]} 47. f5 {[%emt 0:00:06]} h1=Q {[%emt 0:02:04]} 48. Bxh1 {[%emt 0:00:09]} Rxh1 {[%emt 0:00:03]} 49. Kxc4 {[%emt 0:00:17]} 0-1

[Event "Teplice Open 2019"]
[Site "Teplice"]
[Date "2019.06.17"]
[Round "3.32"]
[White "Stewart, Ashley"]
[Black "Risting, Eivind Olav"]
[Result "1/2-1/2"]
[ECO "A37"]
[WhiteElo "2139"]
[BlackElo "2357"]
[Annotator "NA"]
[PlyCount "60"]
[EventDate "2019.06.15"]
[EventType "swiss"]
[EventCountry "CZE"]
[SourceTitle "playchess.com"]
[Source "ChessBase"]
[SourceQuality "1"]
[TimeControl "40/5400+30:1800+30"]

1. c4 {[%emt 0:00:00]} c5 {[%emt 0:00:00]} 2. g3 {[%emt 0:00:00]} g6 {[%emt 0:00:06]} 3. Bg2 {[%emt 0:00:00]} Bg7 {[%emt 0:00:04]} 4. Nc3 {[%emt 0:00:04]} Nc6 {[%emt 0:00:33]} 5. Nf3 {[%emt 0:00:12]} e6 {[%emt 0:00:45]} 6. d4 {[%emt 0:02:49]} cxd4 {[%emt 0:00:52]} 7. Nb5 {[%emt 0:00:12]} d5 {[%emt 0:00:27]} 8. cxd5 {[%emt 0:00:53]} Qa5+ {[%emt 0:00:21]} 9. Nd2 {[%emt 0:00:38]} Qxb5 {[%emt 0:00:24]} 10. a4 {[%emt 0:03:02]} Qb6 {[%emt 0:06:11]} 11. dxc6 {[%emt 0:00:56]} Ne7 {[%emt 0:00:31]} 12. Nc4 {[%emt 0:03:16]} Qb4+ {[%emt 0:01:48]} 13. Bd2 {[%emt 0:00:10]} Qxc4 {[%emt 0:00:05]} 14. cxb7 {[%emt 0:00:31]} Bxb7 {[%emt 0:00:29]} 15. Bxb7 {[%emt 0:00:06]} Rb8 {[%emt 0:00:09]} 16. Rc1 {[%emt 0:02:37]} Qa2 {[%emt 0:00:34]} 17. Ra1 {[%emt 0:04:37]} Qc4 {[%emt 0:12:58]} 18. Rc1 {[%emt 0:01:05]} Qa2 {[%emt 0:00:19]} 19. Ra1 {[%emt 0:04:55]} Qxb2 {[%emt 0:03:06]} 20. Rb1 {[%emt 0:04:19]} Qxb7 {[%emt 0:01:27]} 21. Rxb7 {[%emt 0:00:13]} Rxb7 {[%emt 0:00:06]} 22. O-O {[%emt 0:05:52]} O-O {[%emt 0:00:10]} 23. Qc2 {[%emt 0:12:00]} Nd5 {[%emt 0:09:18]} 24. e3 {[%emt 0:12:40]} dxe3 {[%emt 0:15:17]} 25. Bxe3 {[%emt 0:01:31]} Nxe3 {[%emt 0:06:49]} 26. fxe3 {[%emt 0:00:02]} h5 {[%emt 0:03:09]} 27. Rb1 {[%emt 0:04:21]} Rd7 {[%emt 0:02:40]} 28. Rd1 {[%emt 0:02:59]} Rb7 {[%emt 0:03:46]} 29. Rb1 {[%emt 0:07:51]} Rd7 {[%emt 0:02:08]} 30. Rd1 {[%emt 0:03:50]} Rb7 {[%emt 0:02:02]} 1/2-1/2

[Event "Teplice Open 2019"]
[Site "Teplice"]
[Date "2019.06.17"]
[Round "3.36"]
[White "Kirk, Ezra"]
[Black "Montgomery, Jan Elkjaer Frantsen"]
[Result "1-0"]
[ECO "B47"]
[WhiteElo "2428"]
[BlackElo "2115"]
[Annotator "NA"]
[PlyCount "97"]
[EventDate "2019.06.15"]
[EventType "swiss"]
[EventCountry "CZE"]
[SourceTitle "playchess.com"]
[Source "ChessBase"]
[SourceQuality "1"]
[TimeControl "40/5400+30:1800+30"]

1. e4 {[%emt 0:00:00]} c5 {[%emt 0:00:00]} 2. Nf3 {[%emt 0:00:00]} e6 {[%emt 0:00:00]} 3. d4 {[%emt 0:00:17]} cxd4 {[%emt 0:00:00]} 4. Nxd4 {[%emt 0:00:07]} Nc6 {[%emt 0:00:05]} 5. Nc3 {[%emt 0:00:10]} Qc7 {[%emt 0:00:05]} 6. f4 {[%emt 0:00:06]} a6 {[%emt 0:00:19]} 7. Nxc6 {[%emt 0:00:08]} Qxc6 {[%emt 0:02:07]} 8. Be2 {[%emt 0:00:16]} b5 {[%emt 0:01:14]} 9. Bf3 {[%emt 0:00:17]} Bb7 {[%emt 0:00:12]} 10. Qd3 {[%emt 0:00:30]} Rc8 {[%emt 0:09:43]} 11. Be3 {[%emt 0:03:26]} Qc4 {[%emt 0:02:19]} 12. a3 {[%emt 0:00:40]} b4 {[%emt 0:02:34]} 13. axb4 {[%emt 0:30:57]} Bxb4 {[%emt 0:01:37]} 14. Bd4 {[%emt 0:00:13]} Nf6 {[%emt 0:01:42]} 15. O-O {[%emt 0:18:58]} Qxd4+ {[%emt 0:02:31]} 16. Qxd4 {[%emt 0:00:11]} Bc5 {[%emt 0:00:05]} 17. Rfd1 {[%emt 0:02:08]} O-O {[%emt 0:02:11]} 18. e5 {[%emt 0:06:22]} Bxf3 {[%emt 0:06:15]} 19. gxf3 {[%emt 0:01:58]} Nh5 {[%emt 0:00:42]} 20. f5 {[%emt 0:11:21]} exf5 {[%emt 0:09:01]} 21. Rxa6 {[%emt 0:00:08]} Nf4 {[%emt 0:00:56]} 22. Kf1 {[%emt 0:06:30]} Bxd4 {[%emt 0:00:05]} 23. Rxd4 {[%emt 0:00:03]} Ne6 {[%emt 0:00:13]} 24. Rd2 {[%emt 0:00:20]} Rb8 {[%emt 0:11:52]} 25. b3 {[%emt 0:00:25]} f6 {[%emt 0:01:04]} 26. exf6 {[%emt 0:00:39]} Rxf6 {[%emt 0:00:38]} 27. Rxd7 {[%emt 0:03:22]} Nc5 {[%emt 0:03:59]} 28. Rxf6 {[%emt 0:00:08]} Nxd7 {[%emt 0:00:03]} 29. Rd6 {[%emt 0:00:18]} Ne5 {[%emt 0:00:41]} 30. f4 {[%emt 0:00:10]} Ng4 {[%emt 0:00:50]} 31. Nd5 {[%emt 0:01:51]} Nxh2+ {[%emt 0:02:23]} 32. Kg2 {[%emt 0:00:09]} Ng4 {[%emt 0:00:06]} 33. Ne7+ {[%emt 0:02:42]} Kf8 {[%emt 0:06:17]} 34. Nxf5 {[%emt 0:00:08]} g6 {[%emt 0:07:13]} 35. Nd4 {[%emt 0:00:05]} Ke7 {[%emt 0:01:48]} 36. Ra6 {[%emt 0:00:39]} Rc8 {[%emt 0:01:02]} 37. c4 {[%emt 0:00:57]} Rc7 {[%emt 0:00:23]} 38. Kf3 {[%emt 0:01:00]} Nf6 {[%emt 0:00:15]} 39. Nc6+ {[%emt 0:00:54]} Kd7 {[%emt 0:02:08]} 40. Ne5+ {[%emt 0:02:05]} Ke7 {[%emt 0:00:01]} 41. b4 {[%emt 0:30:42]} Nd7 {[%emt 0:30:08]} 42. Nc6+ {[%emt 0:01:27]} Kd6 {[%emt 0:00:16]} 43. Ne5+ {[%emt 0:03:25]} Ke7 {[%emt 0:00:11]} 44. Nxd7 {[%emt 0:00:45]} Rxd7 {[%emt 0:01:31]} 45. Ke4 {[%emt 0:01:34]} Kf7 {[%emt 0:01:27]} 46. b5 {[%emt 0:00:00]} h5 {[%emt 0:00:00]} 47. b6 {[%emt 0:00:00]} h4 {[%emt 0:00:00]} 48. Ra7 {[%emt 0:00:00]} Ke7 {[%emt 0:00:00]} 49. b7 {[%emt 0:00:00]} 1-0

[Event "Teplice Open 2019"]
[Site "Teplice"]
[Date "2019.06.17"]
[Round "3.37"]
[White "Hollan, Martin"]
[Black "Brejnik, Gustav"]
[Result "1-0"]
[ECO "A20"]
[WhiteElo "2423"]
[BlackElo "2114"]
[Annotator "NA"]
[PlyCount "77"]
[EventDate "2019.06.15"]
[EventType "swiss"]
[EventCountry "CZE"]
[SourceTitle "playchess.com"]
[Source "ChessBase"]
[SourceQuality "1"]
[TimeControl "40/5400+30:1800+30"]

1. c4 {[%emt 0:00:00]} e5 {[%emt 0:00:00]} 2. Nf3 {[%emt 0:00:00]} e4 {[%emt 0:00:08]} 3. Nd4 {[%emt 0:00:00]} c6 {[%emt 0:00:56]} 4. d3 {[%emt 0:01:26]} exd3 {[%emt 0:08:49]} 5. e3 {[%emt 0:04:10]} d5 {[%emt 0:04:54]} 6. cxd5 {[%emt 0:00:14]} Qxd5 {[%emt 0:00:55]} 7. Nc3 {[%emt 0:00:31]} Bb4 {[%emt 0:00:50]} 8. Bd2 {[%emt 0:00:45]} Qe5 {[%emt 0:05:47]} 9. Bxd3 {[%emt 0:02:56]} Nf6 {[%emt 0:01:08]} 10. Qc2 {[%emt 0:01:11]} Nbd7 {[%emt 0:08:18]} 11. a3 {[%emt 0:02:29]} Be7 {[%emt 0:09:05]} 12. f4 {[%emt 0:01:22]} Qc7 {[%emt 0:07:31]} 13. Nf5 {[%emt 0:09:07]} Nc5 {[%emt 0:03:15]} 14. Bc4 {[%emt 0:13:44]} Bxf5 {[%emt 0:05:22]} 15. Qxf5 {[%emt 0:01:03]} b5 {[%emt 0:00:10]} 16. Be2 {[%emt 0:27:02]} Nb3 {[%emt 0:05:52]} 17. Rd1 {[%emt 0:00:52]} O-O {[%emt 0:04:58]} 18. Bf3 {[%emt 0:05:07]} Rad8 {[%emt 0:01:07]} 19. Qc2 {[%emt 0:02:08]} Nxd2 {[%emt 0:01:10]} 20. Rxd2 {[%emt 0:00:05]} Bc5 {[%emt 0:00:55]} 21. Re2 {[%emt 0:03:10]} Rfe8 {[%emt 0:04:12]} 22. Ne4 {[%emt 0:23:12]} Nxe4 {[%emt 0:19:10]} 23. Bxe4 {[%emt 0:00:00]} g6 {[%emt 0:07:09]} 24. Qxc5 {[%emt 0:00:00]} Rxe4 {[%emt 0:00:00]} 25. O-O {[%emt 0:00:00]} Rd5 {[%emt 0:04:17]} 26. Qc3 {[%emt 0:00:57]} Qd7 {[%emt 0:05:16]} 27. Qc1 {[%emt 0:03:20]} c5 {[%emt 0:00:00]} 28. b3 {[%emt 0:00:00]} Qd6 {[%emt 0:00:00]} 29. Rc2 {[%emt 0:00:00]} Rd3 {[%emt 0:00:00]} 30. Rxc5 {[%emt 0:00:00]} Rexe3 {[%emt 0:00:00]} 31. f5 {[%emt 0:00:00]} Rd2 {[%emt 0:00:00]} 32. f6 {[%emt 0:00:44]} h5 {[%emt 0:00:00]} 33. Rxb5 {[%emt 0:00:21]} Ree2 {[%emt 0:00:00]} 34. Rg5 {[%emt 0:00:29]} Qd4+ {[%emt 0:00:00]} 35. Kh1 {[%emt 0:00:08]} Qe4 {[%emt 0:00:00]} 36. Qc8+ {[%emt 0:00:14]} Qe8 {[%emt 0:00:00]} 37. Rxg6+ {[%emt 0:00:13]} Kh7 {[%emt 0:01:03]} 38. Rg7+ {[%emt 0:00:31]} Kh8 {[%emt 0:00:00]} 39. Qf5 {[%emt 0:00:00]} 1-0

[Event "Teplice Open 2019"]
[Site "Teplice"]
[Date "2019.06.18"]
[Round "4.3"]
[White "Epishin, Vladimir"]
[Black "Warmerdam, Max"]
[Result "1/2-1/2"]
[ECO "A30"]
[WhiteElo "2564"]
[BlackElo "2475"]
[Annotator "ChessBase"]
[PlyCount "67"]
[EventDate "2019.06.15"]
[EventType "swiss"]
[EventCountry "CZE"]
[SourceTitle "playchess.com"]
[Source "ChessBase"]
[SourceQuality "1"]
[TimeControl "40/5400+30:1800+30"]

1. c4 {[%emt 0:00:00]} c5 {[%emt 0:00:29]} 2. g3 {[%emt 0:00:00]} g6 {[%emt 0:00:22]} 3. Bg2 {[%emt 0:00:26]} Bg7 {[%emt 0:00:06]} 4. e3 {[%emt 0:00:54]} e6 {[%emt 0:02:06]} 5. Ne2 {[%emt 0:00:42]} Ne7 {[%emt 0:00:34]} 6. d4 {[%emt 0:01:17]} cxd4 {[%emt 0:01:27]} 7. Nxd4 {[%emt 0:00:16]} d5 {[%emt 0:02:28]} 8. cxd5 {[%emt 0:03:05]} Nxd5 {[%emt 0:00:39]} 9. O-O {[%emt 0:00:09]} O-O {[%emt 0:00:12]} 10. Na3 {[%emt 0:00:57]} Nc6 {[%emt 0:15:26]} 11. Nxc6 {[%emt 0:04:35]} bxc6 {[%emt 0:00:03]} 12. Qa4 {[%emt 0:00:02]} Nb6 {[%emt 0:11:01]} 13. Qc2 {[%emt 0:02:05]} Ba6 {[%emt 0:00:32]} 14. Rd1 {[%emt 0:00:28]} Qf6 {[%emt 0:00:57]} 15. Bf1 {[%emt 0:11:06]} Bxf1 {[%emt 0:10:54]} 16. Rxf1 {[%emt 0:00:02]} Rfd8 {[%emt 0:15:51]} 17. e4 {[%emt 0:05:52]} Qd4 {[%emt 0:07:23]} 18. Rb1 {[%emt 0:03:29]} Qd3 {[%emt 0:13:13]} 19. Qxd3 {[%emt 0:14:20]} Rxd3 {[%emt 0:00:03]} 20. b3 {[%emt 0:00:15]} a5 {[%emt 0:07:07]} 21. Be3 {[%emt 0:10:41]} Bd4 {[%emt 0:04:51]} 22. Nc2 {[%emt 0:03:04]} Bxe3 {[%emt 0:00:20]} 23. Nxe3 {[%emt 0:00:02]} Rd4 {[%emt 0:04:07]} 24. Rfc1 {[%emt 0:05:25]} Rc8 {[%emt 0:00:29]} 25. Rc5 {[%emt 0:03:52]} a4 {[%emt 0:00:02]} 26. Rbc1 {[%emt 0:05:56]} axb3 {[%emt 0:00:24]} 27. axb3 {[%emt 0:00:01]} Rxe4 {[%emt 0:00:14]} 28. Rxc6 {[%emt 0:00:04]} Rxc6 {[%emt 0:00:07]} 29. Rxc6 {[%emt 0:00:08]} Rb4 {[%emt 0:00:14]} 30. Rc3 {[%emt 0:00:07]} Nd5 {[%emt 0:00:31]} 31. Nxd5 {[%emt 0:00:19]} exd5 {[%emt 0:00:01]} 32. Kf1 {[%emt 0:00:21]} d4 {[%emt 0:00:34]} 33. Rc4 {[%emt 0:06:39]} Rxb3 {[%emt 0:00:05]} 34. Rxd4 {[%emt 0:00:03]} 1/2-1/2

[Event "Teplice Open 2019"]
[Site "Teplice"]
[Date "2019.06.18"]
[Round "4.4"]
[White "Vorobiov, Evgeny E."]
[Black "Song, Raymond"]
[Result "1-0"]
[ECO "E06"]
[WhiteElo "2556"]
[BlackElo "2450"]
[Annotator "ChessBase"]
[PlyCount "73"]
[EventDate "2019.06.15"]
[EventType "swiss"]
[EventCountry "CZE"]
[SourceTitle "playchess.com"]
[Source "ChessBase"]
[SourceQuality "1"]
[TimeControl "40/5400+30:1800+30"]

1. d4 {[%emt 0:00:00]} Nf6 {[%emt 0:00:00]} 2. c4 {[%emt 0:00:00]} e6 {[%emt 0:00:00]} 3. Nf3 {[%emt 0:00:00]} d5 {[%emt 0:00:00]} 4. g3 {[%emt 0:00:00]} Be7 {[%emt 0:00:50]} 5. Bg2 {[%emt 0:00:00]} O-O {[%emt 0:00:03]} 6. Nc3 {[%emt 0:01:02]} dxc4 {[%emt 0:01:02]} 7. Ne5 {[%emt 0:00:13]} Nc6 {[%emt 0:00:29]} 8. Bxc6 {[%emt 0:01:08]} bxc6 {[%emt 0:00:04]} 9. Nxc6 {[%emt 0:00:06]} Qe8 {[%emt 0:00:11]} 10. Nxe7+ {[%emt 0:00:28]} Qxe7 {[%emt 0:00:02]} 11. Qa4 {[%emt 0:00:13]} c5 {[%emt 0:02:40]} 12. dxc5 {[%emt 0:01:02]} Qxc5 {[%emt 0:00:24]} 13. Be3 {[%emt 0:00:06]} Qc7 {[%emt 0:02:04]} 14. Rd1 {[%emt 0:00:14]} Bb7 {[%emt 0:12:41]} 15. O-O {[%emt 0:07:42]} Nd5 {[%emt 0:04:46]} 16. Bd4 {[%emt 0:00:43]} Rfd8 {[%emt 0:00:48]} 17. Nxd5 {[%emt 0:05:47]} Rxd5 {[%emt 0:03:08]} 18. Bc3 {[%emt 0:00:52]} h5 {[%emt 0:07:59]} 19. Rxd5 {[%emt 0:04:59]} Bxd5 {[%emt 0:00:06]} 20. Rd1 {[%emt 0:04:00]} h4 {[%emt 0:11:50]} 21. gxh4 {[%emt 0:24:35]} f5 {[%emt 0:09:44]} 22. f3 {[%emt 0:05:49]} Rf8 {[%emt 0:01:43]} 23. Qa5 {[%emt 0:04:36]} Qf7 {[%emt 0:05:48]} 24. Qc5 {[%emt 0:01:50]} f4 {[%emt 0:06:44]} 25. Kf2 {[%emt 0:14:57]} Qh5 {[%emt 0:12:46]} 26. Qe7 {[%emt 0:00:34]} Rf7 {[%emt 0:00:05]} 27. Qd8+ {[%emt 0:03:45]} Rf8 {[%emt 0:00:20]} 28. Qg5 {[%emt 0:07:50]} Qxg5 {[%emt 0:00:06]} 29. hxg5 {[%emt 0:00:04]} Kh7 {[%emt 0:00:12]} 30. h4 {[%emt 0:04:03]} Rf5 {[%emt 0:02:34]} 31. Kg2 {[%emt 0:02:40]} Rf7 {[%emt 0:05:40]} 32. Kh3 {[%emt 0:01:57]} Rd7 {[%emt 0:00:14]} 33. h5 {[%emt 0:01:43]} a6 {[%emt 0:01:50]} 34. g6+ {[%emt 0:01:19]} Kg8 {[%emt 0:02:23]} 35. Kh4 {[%emt 0:00:06]} Rd8 {[%emt 0:00:19]} 36. Be5 {[%emt 0:00:50]} Rf8 {[%emt 0:00:37]} 37. Kg4 {[%emt 0:00:44]} 1-0

[Event "Teplice Open 2019"]
[Site "Teplice"]
[Date "2019.06.18"]
[Round "4.5"]
[White "Babula, Vlastimil"]
[Black "Krishna Teja, N."]
[Result "1-0"]
[ECO "D15"]
[WhiteElo "2550"]
[BlackElo "2357"]
[Annotator "ChessBase"]
[PlyCount "69"]
[EventDate "2019.06.15"]
[EventType "swiss"]
[EventCountry "CZE"]
[SourceTitle "playchess.com"]
[Source "ChessBase"]
[SourceQuality "1"]
[TimeControl "40/5400+30:1800+30"]

1. d4 {[%emt 0:00:00]} d5 {[%emt 0:09:11]} 2. c4 {[%emt 0:00:00]} c6 {[%emt 0:00:05]} 3. Nf3 {[%emt 0:00:12]} Nf6 {[%emt 0:00:03]} 4. Nc3 {[%emt 0:00:32]} a6 {[%emt 0:00:03]} 5. e3 {[%emt 0:01:12]} Bf5 {[%emt 0:02:02]} 6. Bd2 {[%emt 0:00:57]} e6 {[%emt 0:00:07]} 7. Qb3 {[%emt 0:00:43]} Ra7 {[%emt 0:02:42]} 8. Nh4 {[%emt 0:01:20]} Be4 {[%emt 0:02:36]} 9. cxd5 {[%emt 0:01:02]} Bxd5 {[%emt 0:05:11]} 10. Qc2 {[%emt 0:01:11]} c5 {[%emt 0:04:53]} 11. Nxd5 {[%emt 0:21:02]} Nxd5 {[%emt 0:00:45]} 12. Nf3 {[%emt 0:00:30]} cxd4 {[%emt 0:01:15]} 13. Nxd4 {[%emt 0:00:41]} Nd7 {[%emt 0:13:57]} 14. a3 {[%emt 0:05:10]} b5 {[%emt 0:04:54]} 15. a4 {[%emt 0:03:13]} Rc7 {[%emt 0:01:30]} 16. Qd1 {[%emt 0:06:02]} e5 {[%emt 0:19:32]} 17. Nf3 {[%emt 0:04:42]} Nb4 {[%emt 0:00:41]} 18. Bc3 {[%emt 0:05:19]} e4 {[%emt 0:00:22]} 19. Nd4 {[%emt 0:11:28]} Ne5 {[%emt 0:02:45]} 20. axb5 {[%emt 0:00:30]} Ned3+ {[%emt 0:00:56]} 21. Bxd3 {[%emt 0:00:25]} Nxd3+ {[%emt 0:00:06]} 22. Kf1 {[%emt 0:01:51]} Qh4 {[%emt 0:04:13]} 23. Qe2 {[%emt 0:01:28]} axb5 {[%emt 0:01:17]} 24. f3 {[%emt 0:12:27]} b4 {[%emt 0:05:37]} 25. Be1 {[%emt 0:01:24]} Qf6 {[%emt 0:02:25]} 26. Kg1 {[%emt 0:11:37]} Bc5 {[%emt 0:07:59]} 27. fxe4 {[%emt 0:00:33]} Bxd4 {[%emt 0:03:13]} 28. Qxd3 {[%emt 0:01:25]} Ba7 {[%emt 0:01:11]} 29. Qb5+ {[%emt 0:01:58]} Rc6 {[%emt 0:01:01]} 30. Rxa7 {[%emt 0:00:58]} O-O {[%emt 0:00:03]} 31. h3 {[%emt 0:02:10]} Qd6 {[%emt 0:02:13]} 32. Qd5 {[%emt 0:00:53]} Qh6 {[%emt 0:00:50]} 33. Kh2 {[%emt 0:00:35]} Rc2 {[%emt 0:00:14]} 34. Rf1 {[%emt 0:01:07]} Qg6 {[%emt 0:00:02]} 35. Rf2 {[%emt 0:00:45]} 1-0